bitfinex/quotes_SOLUSD_20250206
["timestamp","ask_amount","ask_price","bid_price","bid_amount"]
[1738884679510,0.09941042,188.92,188.9,21.81992382]
[1738884679990,0.09941042,188.92,188.89,21.81992382]
[1738884680192,0.09941042,188.92,188.88,21.81992382]
[1738884680379,21.81992382,188.91,188.85,21.81992382]
[1738884680702,21.81992382,188.88,188.81,21.81992382]
[1738884680874,21.81992382,188.87,188.8,21.81992382]
[1738884681077,21.81992382,188.85,188.78,21.81992382]
[1738884681488,21.81992382,188.84,188.77,21.81992382]
[1738884681673,21.81992382,188.82,188.76,21.81992382]
[1738884681874,21.81992382,188.81,188.74,21.84992382]
[1738884682303,31.0,188.87,188.75,21.81992382]
[1738884682304,21.81992382,188.82,188.75,21.81992382]
[1738884682604,21.81992382,188.79,188.74,0.03]
[1738884682981,21.81992382,188.8,188.74,0.03]
[1738884683608,23.40892382,188.8,188.74,0.03]
[1738884684309,21.81992382,188.79,188.74,0.03]
[1738884684606,21.81992382,188.77,188.74,0.03]
[1738884685309,21.81992382,188.78,188.74,0.03]
[1738884685805,1.5892,188.77,188.74,0.03]
[1738884687608,21.81992382,188.75,188.74,0.03]
[1738884689509,21.81992382,188.78,188.74,0.03]
[1738884689711,21.81992382,188.78,188.74,21.84992382]
[1738884689712,20.0,188.78,188.74,21.84992382]
[1738884690011,21.81992382,188.82,188.75,21.81992382]
[1738884690311,27.78862382,188.83,188.76,21.81992382]
[1738884690485,21.81992382,188.82,188.75,21.81992382]
[1738884691183,23.40872382,188.82,188.75,27.11792382]
[1738884691412,23.40872382,188.82,188.76,21.81992382]
[1738884691598,23.47162382,188.84,188.77,21.81992382]
[1738884691913,21.81992382,188.83,188.76,21.81992382]
[1738884692407,23.47162382,188.84,188.77,21.81992382]
[1738884692612,0.063,188.84,188.79,21.81992382]
[1738884692783,0.063,188.84,188.77,5.2974]
[1738884692784,0.063,188.84,188.82,21.81992382]
[1738884693121,0.063,188.84,188.83,21.81992382]
[1738884693703,0.063,188.84,188.77,32.32931853]
[1738884693704,31.0,188.79,188.74,0.03]
[1738884694016,21.81992382,188.75,188.74,0.03]
[1738884694314,22.61402382,188.75,188.74,0.03]
[1738884694535,44.43394764,188.75,188.74,0.03]
[1738884694896,20.0,188.71,188.61,170.0]
[1738884695196,21.81992382,188.68,188.61,197.12182382]
[1738884695406,21.81992382,188.68,188.61,191.81992382]
[1738884695608,21.81992382,188.68,188.61,197.12172382]
[1738884696124,21.81992382,188.68,188.61,191.81992382]
[1738884696914,21.81992382,188.67,188.61,170.0]
[1738884697220,21.81992382,188.68,188.61,191.81992382]
[1738884697597,21.81992382,188.7,188.63,21.81992382]
[1738884698008,0.10793259,188.65,188.64,1.79499232]
[1738884698201,3.259e-05,188.65,188.63,13.41184853]
[1738884698530,3.259e-05,188.65,188.64,0.39778388]
[1738884698821,3.259e-05,188.65,188.64,27.12102382]
[1738884699525,3.259e-05,188.65,188.64,27.51902259]
[1738884700024,3.259e-05,188.65,188.64,27.12102382]
[1738884700721,3.709e-05,188.66,188.64,55.48414764]
[1738884701025,3.709e-05,188.66,188.65,22.21771247]
[1738884701902,3.709e-05,188.66,188.65,27.51851247]
[1738884702101,1.063,188.84,188.74,1.0]
[1738884702305,0.063,188.84,188.83,21.81992382]
[1738884703011,0.063,188.84,188.83,27.11562382]
[1738884703208,0.063,188.96,188.83,40.35502382]
[1738884703209,1.0,188.93,188.83,40.35502382]
[1738884703425,0.063,188.96,188.85,0.12549]
[1738884703613,0.063,188.96,188.88,1.0]
[1738884703813,0.063,188.96,188.89,1.39524624]
[1738884704008,0.063,188.96,188.95,21.81992382]
[1738884704614,0.063,188.99,188.95,36.91500446]
[1738884704921,0.063,188.99,188.95,1.52036901]
[1738884705225,0.0001,188.99,188.98,70.9147609]
[1738884705408,0.063,189.03,188.98,71.3089239]
[1738884705609,1.0,188.97,188.94,35.39463545]
[1738884705913,1.0,189.0,188.95,35.39463545]
[1738884706221,1.0,189.02,188.97,35.39463545]
[1738884706402,1.0,189.01,188.91,5.68846784]
[1738884706600,1.0,188.97,188.91,5.2933]
[1738884706805,1.0,188.94,188.89,5.294]
[1738884707104,1.0,188.92,188.87,5.2944]
[1738884707505,1.0,188.9,188.88,35.39463545]
[1738884707923,1.0,188.9,188.87,35.39463545]
[1738884708425,1.0,188.92,188.89,35.39463545]
[1738884709102,1.0,188.92,188.9,35.39463545]
[1738884709303,1.0,188.92,188.91,35.39463545]
[1738884709521,1.0,188.92,188.9,35.39463545]
[1738884710428,1.0,188.92,188.89,35.39463545]
[1738884710926,1.0,188.91,188.89,35.39463545]
[1738884711128,1.0,188.91,188.88,35.39463545]
[1738884711825,1.0,188.87,188.84,35.39463545]
[1738884712020,1.0,188.86,188.84,35.39463545]
[1738884712526,1.0,188.9,188.85,35.39463545]
[1738884712709,0.99278751,188.97,188.82,35.39463545]
[1738884712710,1.0,188.89,188.87,35.39463545]
[1738884713030,1.0,188.9,188.87,35.39463545]
[1738884713224,1.0,188.89,188.87,35.39463545]
[1738884713437,1.0,188.89,188.86,35.39463545]
[1738884714026,1.0,188.91,188.88,35.39463545]
[1738884714328,35.39463545,188.96,188.88,35.39463545]
[1738884714329,1.0,188.9,188.88,35.39463545]
[1738884714705,1.0,188.91,188.88,35.39463545]
[1738884714905,1.0,188.97,188.9,35.39463545]
[1738884715121,1.0,188.96,188.95,35.39463545]
[1738884715314,1.0,188.97,188.95,35.39463545]
[1738884715516,1.0,188.96,188.95,35.39463545]
[1738884715710,1.0,188.97,188.94,35.39463545]
[1738884716016,1.0,188.96,188.94,35.39463545]
[1738884716423,0.063,188.99,188.87,13.6626579]
[1738884716424,1.0,188.98,188.95,35.39463545]
[1738884716913,1.063,188.99,188.95,35.39463545]
[1738884717114,0.063,188.99,188.98,35.39463545]
[1738884717526,0.063,188.99,188.98,70.7892709]
[1738884717724,0.063,188.99,188.98,71.30897004]
[1738884717924,0.17257518,189.03,189.02,35.39463545]
[1738884718130,0.17257518,189.03,189.02,40.68503545]
[1738884719219,1.0,189.02,188.99,35.39463545]
[1738884719419,1.0,189.01,188.98,35.39463545]
[1738884719628,0.17257518,189.03,189.0,35.39463545]
[1738884719821,0.17257518,189.03,188.98,1.0]
[1738884720238,0.17257518,189.03,189.02,35.39463545]
[1738884720435,0.17257518,189.03,189.01,35.39463545]
[1738884720834,1.0,188.99,188.97,35.39463545]
[1738884721023,1.0,188.98,188.95,35.39463545]
[1738884721213,1.0,189.01,188.95,35.39463545]
[1738884721419,1.0,189.01,188.98,35.39463545]
[1738884721941,1.0,189.02,188.99,35.39463545]
[1738884722128,1.0,189.01,188.98,35.39463545]
[1738884722526,1.0,188.98,188.95,35.39463545]
[1738884722825,1.0,188.99,188.97,35.39463545]
[1738884723230,1.0,189.02,188.98,35.39463545]
[1738884723538,1.0,189.02,188.92,5.68834357]
[1738884723539,1.0,189.02,189.0,35.39463545]
[1738884723718,1.17257518,189.03,188.99,35.39463545]
[1738884723922,1.17257518,189.03,189.0,35.39463545]
[1738884724443,0.17257518,189.03,189.02,35.39463545]
[1738884726046,1.17257518,189.03,189.0,35.39463545]
[1738884726334,0.17257518,189.03,188.99,35.39463545]
[1738884726544,0.17257518,189.03,189.01,35.39463545]
[1738884727321,1.17257518,189.03,189.01,35.39463545]
[1738884727521,1.0,189.02,189.0,35.39463545]
[1738884727933,1.17257518,189.03,189.01,35.39463545]
[1738884728247,0.17257518,189.03,189.01,35.39463545]
[1738884728416,1.17257518,189.03,189.01,35.39463545]
[1738884728746,1.0,189.02,189.0,35.39463545]
[1738884729425,1.0,189.01,188.99,0.03]
[1738884729630,1.0,189.02,188.99,35.42463545]
[1738884729943,1.0,189.02,188.99,0.03]
[1738884730146,1.17257518,189.03,188.99,0.03]
[1738884730358,0.17257518,189.03,189.01,35.39463545]
[1738884730651,1.0,189.02,189.0,35.39463545]
[1738884732343,1.17257518,189.03,189.0,35.39463545]
[1738884732740,1.0,189.02,189.0,35.39463545]
[1738884732949,1.0,189.01,188.99,0.03]
[1738884733330,0.17257518,189.03,189.0,35.39463545]
[1738884733525,0.17257518,189.03,189.02,35.39463545]
[1738884734347,1.17257518,189.03,189.0,35.39463545]
[1738884734546,1.0,189.0,188.99,0.03]
[1738884734738,2.5873,189.0,188.99,0.03]
[1738884735041,37.98193545,189.0,188.99,0.03]
[1738884736234,51.51927398,189.0,188.99,0.03]
[1738884737356,52.51168975,189.0,188.99,0.03]
[1738884737650,38.97435122,189.0,188.99,0.03]
[1738884737946,1.10320843,189.0,188.99,0.03]
[1738884738927,22.69050843,189.0,188.99,0.03]
[1738884739229,38.08514388,189.0,188.99,0.03]
[1738884739651,2.69050843,189.0,188.99,0.03]
[1738884739957,1.10320843,189.0,188.99,0.03]
[1738884740453,0.10320843,189.0,188.99,35.42463545]
[1738884741037,1.10320843,189.0,188.99,0.03]
[1738884742152,2.69050843,189.0,188.99,0.03]
[1738884743230,38.08514388,189.0,188.99,0.03]
[1738884743430,1.0,188.92,188.89,35.39463545]
[1738884743659,1.0,188.91,188.88,35.39463545]
[1738884743962,1.0,188.88,188.87,0.03]
[1738884745739,1.0,188.88,188.87,35.42463545]
[1738884746342,1.0,188.9,188.87,35.42463545]
[1738884746655,1.0,188.9,188.88,35.39463545]
[1738884747345,1.0,188.9,188.89,35.39463545]
[1738884747654,1.0,188.91,188.89,35.39463545]
[1738884747858,1.0,188.95,188.9,35.39463545]
[1738884748055,35.49784388,189.0,188.94,35.39463545]
[1738884748056,1.0,188.96,188.94,35.39463545]
[1738884748355,1.0,188.97,188.95,35.39463545]
[1738884748558,1.0,188.98,188.96,35.39463545]
[1738884748862,1.10320843,189.0,188.97,35.39463545]
[1738884749037,1.10320843,189.0,188.99,35.39463545]
[1738884749360,1.10320843,189.0,188.98,35.39463545]
[1738884749748,1.0,188.99,188.98,35.39463545]
[1738884749949,1.10320843,189.0,188.98,35.39463545]
[1738884750559,1.10320843,189.0,188.95,35.39463545]
[1738884750560,1.0,188.97,188.95,35.39463545]
[1738884750855,1.0,188.96,188.95,35.39463545]
[1738884751361,1.0,188.98,188.95,35.39463545]
[1738884751547,1.0,188.98,188.96,35.39463545]
[1738884752862,1.0,188.97,188.96,35.39463545]
[1738884753559,1.0,188.95,188.94,35.39463545]
[1738884753739,1.0,188.95,188.93,35.39463545]
[1738884753936,1.0,188.93,188.91,35.39463545]
[1738884754149,1.0,188.92,188.9,35.39463545]
[1738884754565,1.0,188.92,188.91,35.39463545]
[1738884754746,1.0,188.93,188.91,35.39463545]
[1738884754942,1.0,188.93,188.92,35.39463545]
[1738884755151,1.0,188.94,188.92,35.39463545]
[1738884755349,1.0,188.95,188.93,35.39463545]
[1738884755550,1.0,188.97,188.94,35.39463545]
[1738884755854,1.0,188.97,188.95,35.39463545]
[1738884756067,1.75350843,189.0,188.95,35.39463545]
[1738884756068,1.0,188.96,188.95,35.39463545]
[1738884756251,1.0,188.96,188.94,35.39463545]
[1738884757163,1.0,188.95,188.94,35.39463545]
[1738884757465,1.0,188.96,188.94,35.39463545]
[1738884757964,1.10343149,188.95,188.94,35.39463545]
[1738884758274,1.10343149,188.95,188.93,35.39463545]
[1738884758958,1.0,188.94,188.91,35.39463545]
[1738884759451,0.10343149,188.95,188.88,13.2653]
[1738884759452,1.0,188.91,188.88,35.42463545]
[1738884759661,1.0,188.9,188.88,0.03]
[1738884759855,35.39463545,188.94,188.88,0.03]
[1738884759856,1.0,188.89,188.88,0.03]
[1738884762271,1.0,188.9,188.88,0.03]
[1738884762658,1.0,188.89,188.88,0.03]
[1738884763271,2.5882,188.89,188.88,0.03]
[1738884763469,2.5882,188.89,188.87,0.03]
[1738884763470,1.0,188.88,188.87,0.03]
[1738884763766,56.39463545,188.88,188.87,0.03]
[1738884763985,21.0,188.88,188.87,0.03]
[1738884764271,1.0,188.88,188.87,0.03]
[1738884764969,21.0,188.88,188.87,0.03]
[1738884765152,24.41628323,188.88,188.87,0.03]
[1738884765649,1.0,188.88,188.87,0.03]
[1738884776054,1.0,188.88,188.87,21.85798323]
[1738884776474,1.0,188.89,188.87,21.85798323]
[1738884776666,1.0,188.89,188.88,21.82798323]
[1738884777074,1.0,188.9,188.88,21.82798323]
[1738884777379,1.0,188.89,188.87,0.03]
[1738884777684,1.0,188.89,188.88,21.82798323]
[1738884778088,1.11509715,188.89,188.88,21.82798323]
[1738884778768,1.11509715,188.89,188.87,21.85798323]
[1738884779561,1.11509715,188.89,188.87,0.03]
[1738884779562,1.0,188.88,188.87,0.03]
[1738884780184,2.5883,188.88,188.87,0.03]
[1738884784165,1.0,188.88,188.87,0.03]
[1738884784388,1.0,188.88,188.87,21.85798323]
[1738884784972,0.11607256,188.9,188.87,21.85798323]
[1738884784973,0.11607256,188.9,188.87,28.41868323]
[1738884785182,0.11347065,188.91,188.9,0.12549]
[1738884785386,0.11347065,188.91,188.9,0.52071145]
[1738884785689,0.11347065,188.91,188.9,5.81451145]
[1738884785889,0.11347065,188.91,188.9,49.47047791]
[1738884786388,0.11347065,188.91,188.9,49.07525646]
[1738884787291,0.11347065,188.91,188.9,49.32623646]
[1738884787486,0.10066422,188.92,188.9,49.72130937]
[1738884787785,0.10066422,188.92,188.91,43.65596646]
[1738884787989,0.10066422,188.92,188.91,21.82798323]
[1738884788966,0.16366422,188.92,188.91,21.82798323]
[1738884789665,1.0,188.89,188.88,21.82798323]
[1738884789873,1.0,188.88,188.87,21.85798323]
[1738884790366,1.0,188.89,188.87,21.85798323]
[1738884791593,1.0,188.88,188.87,21.85798323]
[1738884792895,2.5883,188.88,188.87,0.03]
[1738884794376,1.0,188.88,188.87,0.03]
[1738884796093,1.0,188.88,188.87,21.85798323]
[1738884796286,1.0,188.88,188.87,0.03]
[1738884797992,0.10859785,188.88,188.87,21.85798323]
[1738884798507,1.10859785,188.88,188.87,21.85798323]
[1738884798810,1.10859785,188.88,188.87,0.03]
[1738884799188,2.69689785,188.88,188.87,0.03]
[1738884800586,1.10859785,188.88,188.87,0.03]
[1738884801186,2.69689785,188.88,188.87,0.03]
[1738884807496,1.10859785,188.88,188.87,0.03]
[1738884809518,0.10859785,188.88,188.87,21.85798323]
[1738884810913,0.10859785,188.88,188.87,27.15258323]
[1738884812722,0.10859785,188.88,188.87,27.27807323]
[1738884813016,0.10859785,188.88,188.87,33.92377323]
[1738884813205,0.10859785,188.88,188.87,34.31924633]
[1738884813406,0.10859785,188.88,188.87,35.82554633]
[1738884813913,0.10859785,188.88,188.87,36.07652633]
[1738884815015,0.1014034,188.89,188.87,57.90450956]
[1738884815321,0.1014034,188.89,188.88,48.95026646]
[1738884815894,0.46673172,188.96,188.89,0.12549]
[1738884816220,0.46673172,188.96,188.9,0.39527659]
[1738884816718,0.46673172,188.96,188.95,13.62688277]
[1738884817723,0.46673172,188.96,188.94,13.62688277]
[1738884817913,0.58164713,188.96,188.94,13.62688277]
[1738884818096,0.11491541,188.96,188.95,13.62688277]
[1738884818802,0.11491541,188.96,188.95,18.91928277]
[1738884820000,0.11491541,188.96,188.95,19.3141522]
[1738884820729,0.11491541,188.96,188.95,19.4396422]
[1738884821015,0.11491541,188.96,188.95,21.0266422]
[1738884821429,0.11167744,188.97,188.95,21.2776222]
[1738884821625,0.11167744,188.97,188.96,13.62688277]
[1738884822127,0.10201664,188.98,188.96,34.35915958]
[1738884822311,0.06120836,189.0,188.97,28.02448276]
[1738884822512,0.06120836,189.0,188.99,27.37925554]
[1738884822915,0.06120836,189.0,188.99,32.67045554]
[1738884824503,0.06120836,189.0,188.99,32.92143554]
[1738884824714,0.06120836,189.0,188.99,33.31548451]
[1738884825223,0.16416522,189.03,188.99,33.31548451]
[1738884825431,0.16416522,189.03,189.0,27.25376554]
[1738884826025,0.16416522,189.03,189.0,32.54476554]
[1738884827606,0.16416522,189.03,189.0,32.67025554]
[1738884827811,0.16416522,189.03,189.02,13.75237277]
[1738884830330,0.16416522,189.03,189.02,19.04277277]
[1738884831024,0.63089694,189.03,189.02,13.62688277]
[1738884831333,0.63089694,189.03,189.01,13.62688277]
[1738884832038,0.46673172,189.02,189.01,13.62688277]
[1738884832238,0.46673172,189.02,189.0,13.62688277]
[1738884832611,0.46673172,189.02,188.98,5.2915]
[1738884832612,0.46673172,189.0,188.99,13.62688277]
[1738884832817,0.46673172,188.99,188.98,13.62688277]
[1738884834961,0.46673172,188.97,188.96,13.62688277]
[1738884835137,0.46673172,188.97,188.95,13.62688277]
[1738884835321,0.46673172,188.97,188.92,6.62283032]
[1738884835322,0.46673172,188.98,188.96,13.62688277]
[1738884835723,0.46673172,188.97,188.96,13.62688277]
[1738884835940,0.46673172,188.94,188.93,13.62688277]
[1738884836137,0.46673172,188.94,188.92,13.62688277]
[1738884837645,0.46673172,188.93,188.92,13.62688277]
[1738884838046,0.57644432,188.93,188.92,13.62688277]
[1738884838253,0.1097126,188.93,188.92,13.62688277]
[1738884839048,0.57644432,188.93,188.92,13.62688277]
[1738884839947,0.46673172,188.92,188.91,13.62688277]
[1738884840134,0.46673172,188.91,188.88,5.2943]
[1738884840455,0.46673172,188.92,188.9,13.62688277]
[1738884840640,0.46673172,188.92,188.91,13.62688277]
[1738884843468,0.46673172,188.91,188.89,13.62688277]
[1738884843636,0.46673172,188.88,188.87,13.65688277]
[1738884843829,0.46673172,188.88,188.87,0.03]
[1738884844862,0.46673172,188.88,188.87,13.65688277]
[1738884845658,0.46673172,188.91,188.87,18.95148277]
[1738884845840,0.46673172,188.9,188.89,13.62688277]
[1738884846447,0.46673172,188.91,188.89,13.62688277]
[1738884846845,0.46673172,188.92,188.9,13.62688277]
[1738884847065,0.46673172,188.91,188.88,5.2943]
[1738884848167,0.46673172,188.91,188.9,13.62688277]
[1738884849545,0.46673172,188.92,188.9,13.62688277]
[1738884849735,0.46673172,188.92,188.91,13.62688277]
[1738884850158,0.46673172,188.92,188.88,5.294]
[1738884850159,0.46673172,188.9,188.88,13.62688277]
[1738884850465,0.46673172,188.89,188.88,13.62688277]
[1738884850850,1.5879,188.92,188.88,13.62688277]
[1738884850851,0.46673172,188.91,188.88,13.62688277]
[1738884851051,0.46673172,188.91,188.9,13.62688277]
[1738884852042,0.46673172,188.92,188.9,13.62688277]
[1738884852247,0.46673172,188.92,188.91,13.62688277]
[1738884852664,0.57644432,188.93,188.91,13.62688277]
[1738884852861,0.57644432,188.93,188.92,13.62688277]
[1738884853765,0.1097126,188.93,188.92,13.62688277]
[1738884853950,0.1097126,188.93,188.92,19.31552608]
[1738884854558,0.09728031,188.94,188.92,19.44101608]
[1738884854761,0.09728031,188.94,188.93,13.62688277]
[1738884855841,0.09728031,188.94,188.93,19.29625277]
[1738884856042,0.09543898,188.95,188.94,0.12549]
[1738884856359,0.09543898,188.95,188.94,14.39799062]
[1738884856949,0.11376037,188.96,188.94,14.02152062]
[1738884857154,0.11376037,188.96,188.95,13.62688277]
[1738884857950,0.22879957,188.96,188.95,13.62688277]
[1738884858268,0.22879957,188.96,188.95,19.31405369]
[1738884859349,0.1150392,188.96,188.95,19.31405369]
[1738884860470,0.1150392,188.96,188.95,13.62688277]
[1738884861388,0.1780392,188.96,188.95,18.91928277]
[1738884861555,0.46673172,188.94,188.93,0.03]
[1738884862244,15.68141449,188.94,188.93,0.03]
[1738884862447,16.79954816,188.94,188.93,0.0001]
[1738884862767,0.46673172,188.88,188.87,0.03]
[1738884864081,2.05503172,188.88,188.87,0.03]
[1738884866179,0.46673172,188.89,188.87,13.65688277]
[1738884866348,0.46673172,188.89,188.88,13.62688277]
[1738884868161,0.46673172,188.91,188.88,13.62688277]
[1738884868362,0.46673172,188.91,188.9,13.62688277]
[1738884872087,0.46673172,188.9,188.88,13.62688277]
[1738884872292,0.46673172,188.88,188.87,13.65688277]
[1738884872992,0.46673172,188.88,188.87,0.03]
[1738884873193,0.46673172,188.88,188.87,13.65688277]
[1738884873500,0.46673172,188.89,188.87,13.65688277]
[1738884873791,0.46673172,188.89,188.88,13.62688277]
[1738884876781,0.46673172,188.88,188.87,0.03]
[1738884878072,0.56566804,188.88,188.87,0.03]
[1738884879003,2.15396804,188.88,188.87,0.03]
[1738884879188,0.56566804,188.88,188.87,0.03]
[1738884879980,0.56566804,188.88,188.87,13.65688277]
[1738884880810,0.56566804,188.88,188.87,0.03]
[1738884881303,0.56566804,188.88,188.87,13.65688277]
[1738884883412,0.56566804,188.88,188.87,0.03]
[1738884886179,2.15396804,188.88,188.87,0.03]
[1738884886905,0.56566804,188.88,188.87,0.03]
[1738884888688,2.15396804,188.88,188.87,0.03]
[1738884892014,0.56566804,188.88,188.87,0.03]
[1738884892207,0.56566804,188.88,188.87,8.75889883]
[1738884895196,0.09893632,188.88,188.87,14.05349883]
[1738884896323,0.09893632,188.88,188.87,14.44917843]
[1738884896927,0.11160282,188.89,188.87,14.70015843]
[1738884897099,0.11160282,188.89,188.88,8.72889883]
[1738884897302,0.10916211,188.9,188.89,0.25098]
[1738884897503,0.10916211,188.9,188.89,44.29066989]
[1738884897703,6.211e-05,188.9,188.89,44.54164989]
[1738884897904,0.09779342,188.9,188.89,44.54164989]
[1738884898110,0.21026372,188.92,188.89,44.54164989]
[1738884898414,0.1761761,188.93,188.92,0.25098]
[1738884898622,0.1761761,188.93,188.92,14.26741589]
[1738884898822,0.21029695,188.94,188.92,14.51839589]
[1738884899026,0.10944846,188.99,188.96,13.62152614]
[1738884899199,0.10944846,188.99,188.98,13.62152614]
[1738884899395,0.10944846,188.99,188.98,18.91302614]
[1738884901098,0.57618018,188.99,188.98,13.62152614]
[1738884901300,0.57618018,188.99,188.97,13.62152614]
[1738884901502,0.46673172,188.98,188.97,13.62152614]
[1738884901898,0.57618018,188.99,188.97,13.62152614]
[1738884902103,0.57618018,188.99,188.95,5.2923]
[1738884902104,0.57618018,188.99,188.98,13.62152614]
[1738884902319,0.10944846,188.99,188.98,13.62152614]
[1738884902901,0.57618018,188.99,188.98,13.62152614]
[1738884903305,0.57618018,188.99,188.97,13.62152614]
[1738884903504,0.46673172,188.97,188.96,13.62152614]
[1738884903707,0.46673172,188.96,188.95,13.62152614]
[1738884904823,0.57618018,188.99,188.95,13.62152614]
[1738884905022,0.57618018,188.99,188.98,13.62152614]
[1738884906528,0.10944846,188.99,188.98,13.62152614]
[1738884906826,0.10944846,188.99,188.98,18.91302614]
[1738884907032,0.10944846,188.99,188.98,32.53455228]
[1738884907523,0.10944846,188.99,188.98,32.78553228]
[1738884907703,0.10944846,188.99,188.98,19.55835665]
[1738884908398,0.10944846,188.99,188.98,33.17988279]
[1738884908617,0.10944846,188.99,188.98,33.43086279]
[1738884908922,0.063,189.01,188.99,0.25098]
[1738884909124,0.063,189.01,189.0,27.88818194]
[1738884909329,0.063,189.01,189.0,13.62152614]
[1738884909922,0.063,189.01,189.0,14.01579272]
[1738884910125,0.063,189.01,189.0,27.63731886]
[1738884910511,0.063,189.01,189.0,33.17929886]
[1738884911023,0.063,189.01,189.0,33.43027886]
[1738884913037,0.063,189.07,189.01,0.25098]
[1738884913329,0.063,189.07,189.06,13.62152614]
[1738884914334,0.063,189.08,189.06,13.62152614]
[1738884914537,0.063,189.08,189.07,14.01504361]
[1738884914726,0.063,189.11,189.08,0.25098]
[1738884914931,0.063,189.12,189.11,13.62152614]
[1738884915128,0.063,189.12,189.11,19.41138614]
[1738884915432,0.063,189.15,189.12,0.25098]
[1738884915736,0.063,189.15,189.11,19.16040614]
[1738884915737,0.063,189.15,189.13,14.26529728]
[1738884915908,0.52973172,189.15,189.13,13.62152614]
[1738884916105,0.063,189.15,189.13,13.62152614]
[1738884916708,0.46673172,189.11,189.1,13.62152614]
[1738884916916,0.46673172,189.11,189.08,13.62152614]
[1738884917318,0.46673172,189.1,189.04,18.5144]
[1738884917523,0.46673172,189.1,189.05,0.3936105]
[1738884917920,0.46673172,189.1,189.09,13.62152614]
[1738884918230,0.56882009,189.1,189.09,13.62152614]
[1738884919434,0.46673172,189.08,189.06,13.62152614]
[1738884919729,0.46673172,189.05,189.04,13.62152614]
[1738884921608,0.46673172,189.02,189.0,13.62152614]
[1738884921809,0.46673172,189.0,188.99,13.62152614]
[1738884922025,0.46673172,189.01,188.99,13.62152614]
[1738884922332,0.46673172,189.01,189.0,13.62152614]
[1738884922720,1.5868,189.06,189.0,13.62152614]
[1738884922721,0.46673172,189.02,189.0,13.62152614]
[1738884922923,0.46673172,189.02,189.01,13.62152614]
[1738884925234,1.5868,189.06,188.99,13.62152614]
[1738884925235,0.46673172,189.0,188.99,13.62152614]
[1738884925413,0.46673172,188.99,188.98,13.65152614]
[1738884927031,0.46673172,188.99,188.98,0.03]
[1738884927746,2.05403172,188.99,188.98,0.03]
[1738884928036,15.67555786,188.99,188.98,0.03]
[1738884928427,15.67555786,188.99,188.89,13.62152614]
[1738884928428,17.80104786,188.99,188.89,13.62152614]
[1738884928627,0.46673172,188.88,188.87,13.65152614]
[1738884929817,0.46673172,188.89,188.87,13.65152614]
[1738884930011,0.46673172,188.89,188.88,13.62152614]
[1738884932330,0.46673172,188.91,188.88,18.91582614]
[1738884932541,0.46673172,188.93,188.9,13.62152614]
[1738884932835,0.46673172,188.94,188.92,13.62152614]
[1738884934339,0.46673172,188.93,188.92,5.2932]
[1738884934540,0.46673172,188.93,188.92,18.91472614]
[1738884935062,0.46673172,188.94,188.92,18.91472614]
[1738884935358,0.46673172,188.94,188.93,13.62152614]
[1738884935740,0.46673172,188.95,188.93,13.62152614]
[1738884935940,0.46673172,188.95,188.94,13.62152614]
[1738884936262,0.46673172,188.95,188.93,13.62152614]
[1738884936448,0.46673172,188.94,188.93,13.62152614]
[1738884937958,0.57737851,188.94,188.93,13.62152614]
[1738884938952,0.57737851,188.94,188.92,13.62152614]
[1738884939144,0.46673172,188.92,188.91,13.62152614]
[1738884939334,0.46673172,188.89,188.88,13.65152614]
[1738884941059,0.46673172,188.9,188.88,18.94582614]
[1738884941238,0.46673172,188.91,188.89,13.62152614]
[1738884941438,0.46673172,188.91,188.9,13.62152614]
[1738884946470,0.46673172,188.89,188.88,13.65152614]
[1738884946854,0.46673172,188.89,188.88,18.94582614]
[1738884952747,0.46673172,188.9,188.88,18.94582614]
[1738884952947,0.46673172,188.9,188.89,13.62152614]
[1738884955667,0.46673172,188.9,188.89,18.91552614]
[1738884956367,0.46673172,188.9,188.89,13.62152614]
[1738884958076,0.56630051,188.9,188.89,13.62152614]
[1738884958372,0.09956879,188.9,188.89,18.91552614]
[1738884960074,0.09956879,188.9,188.89,18.94552614]
[1738884961079,0.56630051,188.9,188.89,13.65152614]
[1738884961260,0.56630051,188.9,188.89,0.03]
[1738884961460,2.15440051,188.9,188.89,0.03]
[1738884961771,15.77592665,188.9,188.89,0.03]
[1738884962959,0.56630051,188.9,188.89,0.03]
[1738884963870,2.15440051,188.9,188.89,0.03]
[1738884964071,0.56630051,188.9,188.89,0.03]